bitfinex/quotes_ETHUSD_20240601
["timestamp","ask_amount","ask_price","bid_price","bid_amount"]
[1717234850514,0.59719963,3796.6,3795.7,2.63452]
[1717234853319,0.07091756,3796.5,3795.7,2.63452]
[1717234857508,0.07091756,3796.5,3795.6,7.43]
[1717234857850,2.3671,3796.4,3795.6,7.43]
[1717234858147,0.29824448,3796.3,3795.6,7.43]
[1717234858558,0.07094309,3796.2,3795.6,7.43]
[1717234858719,0.07094309,3796.2,3795.3,2.4324]
[1717234859243,0.54442724,3796.6,3795.3,2.4324]
[1717234859419,0.07093552,3796.1,3795.3,2.4324]
[1717234859756,0.56948317,3796.7,3795.3,2.4324]
[1717234859952,0.92801468,3796.6,3795.3,2.4324]
[1717234860315,0.07097336,3796.6,3795.4,2.63474]
[1717234860516,0.56946873,3796.7,3795.5,2.2746]
[1717234860729,2.63383,3796.8,3795.6,2.63462]
[1717234860917,3.4841742,3796.8,3795.6,2.63462]
[1717234862660,2.63383,3796.8,3795.6,2.63462]
[1717234866260,2.63383,3796.8,3795.7,2.4801]
[1717234868320,0.0715207,3796.7,3795.7,2.4801]
[1717234872476,0.0715207,3796.7,3795.8,2.63448]
[1717234872756,0.0715207,3796.7,3795.9,2.4801]
[1717234875952,0.64095017,3796.7,3795.9,2.4801]
[1717234879544,2.63394,3796.6,3795.9,2.4801]
[1717234879740,0.6411521,3796.5,3795.9,2.4801]
[1717234881278,0.07172263,3796.5,3795.9,2.4801]
[1717234889790,0.07172263,3796.5,3795.9,2.47631331]
[1717234890699,0.07172263,3796.5,3795.6,7.43]
[1717234890995,2.63394,3796.6,3795.6,7.43]
[1717234892877,2.63394,3796.6,3795.7,2.4655]
[1717234899774,2.63394,3796.6,3795.6,7.43]
[1717234899975,2.3381,3796.2,3795.6,7.43]
[1717234900167,2.3381,3795.8,3795.6,7.43]
[1717234900375,0.06933796,3795.7,3795.6,7.43]
[1717234900674,2.3381,3795.8,3795.6,7.43]
[1717234901010,0.0691114,3795.7,3795.6,7.43]
[1717234901607,0.06888483,3795.7,3795.6,7.43]
[1717234901915,2.3381,3795.8,3795.6,7.43]
[1717234902208,0.06888483,3795.7,3795.6,7.43]
[1717234902710,2.3381,3795.8,3795.6,7.43]
[1717234903017,0.06888483,3795.7,3795.6,7.43]
[1717234903192,2.3381,3795.8,3795.6,7.43]
[1717234903371,0.06888483,3795.7,3795.6,7.43]
[1717234903567,2.3381,3795.8,3795.6,7.43]
[1717234903773,0.06888483,3795.7,3795.6,7.43]
[1717234903999,2.3381,3795.8,3794.8,7.43]
[1717234904200,0.06888483,3795.7,3794.8,7.43]
[1717234904606,2.3381,3795.8,3794.8,7.43]
[1717234905089,0.0688939,3795.7,3794.8,7.43]
[1717234905509,2.3381,3795.8,3794.8,7.43]
[1717234905876,0.06889087,3795.7,3794.8,7.43]
[1717234906276,2.3381,3795.8,3794.8,7.43]
[1717234906817,0.06809724,3795.7,3794.8,7.43]
[1717234907316,2.3381,3795.8,3794.8,9.7356]
[1717234907687,0.06810024,3795.7,3794.8,9.7356]
[1717234908214,2.3381,3795.8,3794.8,9.7356]
[1717234908583,0.06810024,3795.7,3794.8,9.7356]
[1717234908918,2.3381,3795.8,3794.8,9.7356]
[1717234909279,0.06820902,3795.7,3794.8,9.7356]
[1717234909601,2.3381,3795.8,3794.8,9.7356]
[1717234910035,0.06820902,3795.7,3794.8,9.7356]
[1717234910412,2.3381,3795.8,3794.8,9.7356]
[1717234910920,0.06819392,3795.7,3794.8,9.7356]
[1717234911436,2.3381,3795.8,3794.8,9.7356]
[1717234911792,0.06818183,3795.7,3794.8,9.7356]
[1717234912195,2.3381,3795.8,3794.8,9.7356]
[1717234912396,0.06818183,3795.7,3794.8,9.7356]
[1717234912593,2.3381,3795.8,3794.8,9.7356]
[1717234912806,0.06818183,3795.7,3794.8,9.7356]
[1717234913191,2.3381,3795.8,3794.8,9.7356]
[1717234913399,0.06818183,3795.7,3794.9,0.55]
[1717234913716,0.06818183,3795.7,3794.8,9.7356]
[1717234913936,2.4761,3796.2,3794.8,9.7356]
[1717234914239,0.06817284,3796.1,3794.8,9.7356]
[1717234917155,2.70247284,3796.1,3794.8,9.7356]
[1717234919047,2.4761,3796.0,3794.8,9.7356]
[1717234919532,0.06716501,3795.9,3794.8,9.7356]
[1717234920076,2.4761,3795.7,3794.8,7.43]
[1717234920251,0.58492151,3795.9,3794.8,7.43]
[1717234920252,2.63494,3795.2,3794.8,7.43]
[1717234920401,2.4761,3795.1,3794.8,7.43]
[1717234920737,2.70210967,3795.0,3794.8,7.43]
[1717234920944,2.70210967,3795.0,3794.3,0.41224402]
[1717234921309,3.21993064,3795.0,3794.3,0.41224402]
[1717234922160,3.21993064,3795.0,3793.9,7.43]
[1717234922313,2.70210967,3795.0,3793.9,7.43]
[1717234922513,2.63522,3794.8,3793.9,7.43]
[1717234922926,0.06687491,3794.7,3793.9,7.43]
[1717234924220,2.63534,3794.6,3793.9,7.43]
[1717234924462,2.70220734,3794.6,3793.9,7.43]
[1717234924951,0.06686734,3794.6,3793.9,7.43]
[1717234925155,0.06686734,3794.6,3794.0,5.006]
[1717234925344,2.63492,3795.2,3794.0,2.6357]
[1717234925661,0.06676011,3795.1,3794.0,2.6357]
[1717234926225,2.63492,3795.2,3794.0,2.6357]
[1717234926643,0.06676011,3795.1,3794.0,2.6357]
[1717234927127,2.63492,3795.2,3794.0,2.6357]
[1717234927536,0.06676011,3795.1,3794.0,2.6357]
[1717234927962,2.63492,3795.2,3794.0,2.6357]
[1717234928374,0.06682357,3795.1,3794.0,2.6357]
[1717234928871,2.63492,3795.2,3794.0,2.6357]
[1717234929223,0.06682357,3795.1,3794.0,2.6357]
[1717234929657,2.63492,3795.2,3794.0,2.6357]
[1717234930062,0.06682357,3795.1,3794.0,2.6357]
[1717234930562,2.63492,3795.2,3794.0,2.6357]
[1717234930857,0.06657275,3795.1,3794.0,2.6357]
[1717234931247,2.63492,3795.2,3794.0,2.6357]
[1717234931449,2.3484,3795.3,3794.0,2.6357]
[1717234931646,0.06656068,3795.1,3794.0,2.6357]
[1717234931843,0.30140825,3795.2,3794.0,2.6357]
[1717234932154,2.86976,3795.2,3794.0,2.6357]
[1717234932384,0.06656068,3795.1,3794.0,2.6357]
[1717234932929,2.63505,3795.0,3794.0,2.6357]
[1717234933359,0.06650624,3794.9,3793.9,7.43]
[1717234933964,2.3484,3794.8,3793.9,7.43]
[1717234934254,0.06649109,3794.7,3793.9,7.43]
[1717234935522,2.63505,3795.0,3793.9,7.43]
[1717234949142,0.56969356,3794.9,3793.9,7.43]
[1717234949473,0.06549676,3794.8,3793.9,7.43]
[1717234950977,0.06549676,3794.8,3794.0,2.4316]
[1717234956771,2.63505,3795.0,3794.0,2.4316]
[1717234957098,0.56968896,3794.9,3794.0,2.4316]
[1717234957275,2.63505,3795.0,3794.0,2.4316]
[1717234958393,0.56968786,3794.9,3794.0,2.4316]
[1717234958695,0.0648107,3794.8,3794.0,2.4316]
[1717234959896,2.63505,3795.0,3794.0,2.4316]
[1717234966191,2.63505,3795.0,3794.1,2.63566]
[1717234969626,2.63505,3795.0,3794.2,2.2545]
[1717234969923,2.345,3795.4,3794.2,2.2545]
[1717234970107,0.06391947,3794.9,3794.2,2.2545]
[1717234970312,0.56966792,3795.3,3794.2,2.2545]
[1717234970489,0.0639119,3794.8,3794.2,2.2545]
[1717234970680,0.56966792,3795.2,3794.2,2.2545]
[1717234970880,0.06390433,3794.7,3794.2,2.2545]
[1717234971083,0.56966792,3795.2,3794.2,2.2545]
[1717234971310,0.06389675,3794.6,3794.2,2.2545]
[1717234971528,0.56966792,3795.2,3794.2,2.2545]
[1717234971730,0.06388918,3794.5,3794.2,2.2545]
[1717234971889,0.56966792,3795.2,3794.2,2.2545]
[1717234972094,0.0638816,3794.4,3794.2,2.2545]
[1717234972389,0.56966792,3795.2,3794.2,2.2545]
[1717234972889,0.06393462,3795.1,3794.2,2.2545]
[1717234981401,0.06393462,3795.1,3794.3,2.63547]
[1717234981616,0.06393462,3795.1,3794.2,2.2545]
[1717234981932,0.56966835,3795.8,3794.2,2.2545]
[1717234982695,3.56966835,3795.8,3794.2,2.2545]
[1717234982895,0.06185895,3795.7,3794.2,2.2545]
[1717234983099,0.06185895,3795.7,3794.7,2.63523]
[1717234983302,0.06185895,3795.7,3794.8,2.3432]
[1717234986135,2.63461,3795.7,3794.8,2.3432]
[1717234986442,0.06185138,3795.6,3794.8,2.3432]
[1717234995250,2.63461,3795.7,3794.8,2.3432]
[1717234995557,0.06213913,3795.6,3794.8,2.3432]
[1717235000563,0.19424466,3795.9,3794.8,2.3432]
[1717235000739,0.06226028,3795.8,3794.8,2.3432]
[1717235005247,3.26579077,3795.8,3794.8,2.3432]
[1717235009578,3.26579077,3795.8,3794.6,2.6353]
[1717235009780,2.2733,3795.3,3794.5,9.8578]
[1717235009954,0.06172809,3795.2,3794.5,7.43]
[1717235010156,0.55253609,3795.2,3794.5,7.43]
[1717235010356,2.63499,3795.1,3794.5,7.43]
[1717235010567,0.06165493,3795.0,3794.5,7.43]
[1717235010768,0.06165493,3795.0,3794.3,2.4278]
[1717235011276,0.06165493,3795.0,3794.1,2.4278]
[1717235011955,0.60773022,3795.0,3794.1,2.4278]
[1717235012975,0.60773022,3795.0,3794.0,7.43]
[1717235012976,2.2733,3794.8,3794.0,7.43]
[1717235013276,2.63525,3794.7,3794.0,7.43]
[1717235013684,0.06144319,3794.6,3794.0,7.43]
[1717235015368,0.06144319,3794.6,3793.7,12.24]
[1717235015584,2.63525,3794.7,3793.6,7.84237793]
[1717235015743,0.06076411,3794.6,3793.7,2.4278]
[1717235015947,0.56966256,3795.8,3793.8,2.4278]
[1717235016170,0.05701634,3795.7,3793.8,3.01493497]
[1717235016385,2.2733,3795.9,3793.8,3.01493497]
[1717235016698,2.2733,3795.9,3793.9,2.4278]
[1717235017185,2.63451,3795.8,3794.3,2.4278]
[1717235017549,0.05731377,3795.7,3794.3,2.4278]
[1717235017978,0.05731377,3795.7,3794.3,3.01493497]
[1717235018587,0.05731377,3795.7,3794.3,3.45203523]
[1717235020265,0.05731377,3795.7,3794.3,2.4278]
[1717235021084,0.05731377,3795.7,3794.3,9.8578]
[1717235021266,2.63451,3795.8,3794.4,2.63544]
[1717235021791,0.05731377,3795.7,3794.4,2.63544]
[1717235022191,0.05731377,3795.7,3794.5,2.4278]
[1717235022355,2.63451,3795.8,3794.5,2.4278]
[1717235022869,2.63451,3795.8,3794.6,2.63532]
[1717235022870,0.05731377,3795.7,3794.6,2.63532]
[1717235023076,2.63451,3795.8,3794.6,2.63532]
[1717235023269,0.05729407,3795.6,3794.6,2.63532]
[1717235023586,2.63451,3795.8,3794.6,2.63532]
[1717235023787,0.05730164,3795.7,3794.6,2.63532]
[1717235024097,2.63451,3795.8,3794.6,2.63532]
[1717235024255,0.05729695,3795.6,3794.6,2.63532]
[1717235024603,2.63451,3795.8,3794.6,2.63532]
[1717235024786,0.05738038,3795.7,3794.6,2.63532]
[1717235025156,2.63451,3795.8,3794.6,2.63532]
[1717235025584,0.05738038,3795.7,3794.6,2.63532]
[1717235025976,2.63451,3795.8,3794.6,2.63532]
[1717235026377,0.05737751,3795.7,3794.6,2.63532]
[1717235026583,2.63451,3795.8,3794.6,2.63532]
[1717235026907,0.05738629,3795.7,3794.8,2.63515]
[1717235027072,3.0,3796.2,3794.8,2.63515]
[1717235027474,0.05737872,3795.6,3794.8,2.63515]
[1717235027679,3.0,3796.2,3794.8,2.63515]
[1717235027893,0.05737115,3795.5,3794.8,2.63515]
[1717235028075,3.0,3796.2,3794.8,2.63515]
[1717235028280,0.05736358,3795.4,3794.8,2.63515]
[1717235028496,3.0,3796.2,3794.8,2.63515]
[1717235028800,0.05741531,3796.1,3794.8,2.63515]
[1717235034580,0.05741531,3796.1,3794.9,2.4675]
[1717235039318,0.56915653,3796.0,3794.9,2.4675]
[1717235039695,0.0577947,3795.9,3794.9,2.4675]
[1717235040316,3.0,3796.2,3794.9,2.4675]
[1717235040918,0.05780984,3796.1,3794.9,2.4675]
[1717235078049,2.63435,3796.0,3794.9,2.4675]
[1717235078349,0.62543416,3795.9,3794.9,2.4675]
[1717235079372,0.05590362,3795.9,3794.9,2.4675]
[1717235079875,0.62545035,3795.9,3794.9,2.4675]
[1717235083072,0.05590362,3795.9,3794.9,2.4675]
[1717235083249,0.62544751,3795.9,3794.9,2.4675]
[1717235084592,0.62544784,3795.9,3794.9,2.4675]
[1717235092086,2.63449,3795.8,3794.9,2.4675]
[1717235092501,0.05588224,3795.7,3794.9,2.4675]
[1717235102001,0.62546558,3795.7,3794.9,2.4675]
[1717235102185,0.8945028,3795.7,3794.9,2.4675]
[1717235102385,0.32491946,3795.7,3794.9,2.4675]
[1717235102904,2.63466,3795.6,3794.9,2.4675]
[1717235103508,0.05590662,3795.5,3794.9,2.4675]
[1717235116120,4.93759,3795.4,3794.7,7.43]
[1717235116484,0.05579161,3795.3,3794.7,7.43]
[1717235116695,0.55512977,3795.3,3794.7,7.43]
[1717235117022,2.63495,3795.2,3794.7,7.43]
[1717235117384,0.05573697,3795.1,3794.7,7.43]
[1717235117589,2.63505,3795.0,3794.7,7.43]
[1717235118012,0.05572182,3794.9,3794.7,7.43]
[1717235118322,0.26907718,3794.8,3794.3,2.4981]
[1717235118721,0.05570667,3794.7,3794.3,2.4981]
[1717235119216,0.26907718,3794.8,3794.3,2.4981]
[1717235119581,0.05555724,3794.7,3794.3,2.4981]
[1717235120009,0.26907718,3794.8,3794.3,2.4981]
[1717235120394,0.35124432,3794.7,3794.2,0.41237921]
[1717235123200,0.05555436,3794.7,3794.2,0.41237921]
[1717235123602,2.3028,3794.9,3794.2,0.41237921]
[1717235123812,0.05365086,3794.6,3794.2,0.41237921]
[1717235124126,0.05364329,3794.5,3794.2,0.41237921]
[1717235124499,2.3028,3794.9,3794.2,0.41237921]
[1717235124700,0.54745101,3794.8,3794.2,0.41237921]
[1717235125941,0.6002234,3794.8,3794.2,0.41237921]
[1717235126310,0.6002234,3794.8,3794.0,2.4981]
[1717235126640,0.493785,3794.8,3794.0,2.4981]
[1717235129019,0.05277239,3794.7,3794.0,2.4981]
[1717235129335,0.60121313,3794.7,3794.0,2.4981]
[1717235130004,0.60121313,3794.7,3793.9,7.43]
[1717235130005,2.63534,3794.6,3793.9,7.43]
[1717235130205,2.68890876,3794.6,3793.6,2.4023]
[1717235130503,2.63534,3794.6,3793.6,2.4023]
[1717235132045,2.2654,3794.5,3793.6,2.4023]
[1717235134344,2.755474,3794.5,3793.6,2.4023]
[1717235134518,0.0517693,3794.4,3793.6,2.4023]
[1717235135822,0.10454169,3794.4,3793.6,2.4023]
[1717235136235,0.10454169,3794.4,3793.5,7.43]
[1717235137222,0.0517693,3794.4,3793.5,7.43]
[1717235137426,0.54425833,3794.3,3793.5,7.43]
[1717235137818,0.05160622,3794.2,3793.5,7.43]
[1717235141357,0.05160622,3794.2,3793.4,2.4023]
[1717235141561,0.54425833,3794.3,3793.4,2.4023]
[1717235146551,2.3974,3794.2,3793.3,2.63617]
[1717235147354,0.05150021,3794.1,3793.3,2.63617]
[1717235149817,0.05150021,3794.1,3793.1,7.43]
[1717235150017,2.3974,3794.2,3793.1,7.43]
[1717235150247,2.3974,3794.1,3793.1,7.43]
[1717235150461,2.3974,3793.9,3793.1,7.43]
[1717235155666,0.04976346,3793.8,3793.1,7.43]
[1717235155842,0.04976346,3793.8,3792.8,2.63652]
[1717235156043,2.3974,3793.9,3792.8,2.63652]
[1717235160986,2.3974,3793.7,3792.7,7.43]
[1717235161374,0.04957493,3793.6,3792.7,7.43]
[1717235161744,2.3974,3793.5,3792.7,7.43]
[1717235162068,2.44695518,3793.5,3792.7,7.43]
[1717235162267,2.3974,3793.5,3792.7,7.43]
[1717235162495,3.0,3794.5,3792.7,7.43]
[1717235162496,2.3974,3793.3,3792.7,7.43]
[1717235162690,2.3974,3793.3,3792.3,10.06686]
[1717235162891,2.63618,3793.4,3792.3,7.43]
[1717235162892,2.3586,3793.1,3792.3,7.43]
[1717235171973,2.3586,3792.9,3792.3,7.43]
[1717235172177,0.5538179,3792.8,3792.3,7.43]
[1717235172386,0.04903666,3792.8,3792.3,7.43]
[1717235174104,2.3586,3792.7,3792.3,7.43]
[1717235174324,2.40762908,3792.7,3792.3,7.43]
[1717235175473,2.63671,3792.6,3792.3,7.43]
[1717235175681,2.3586,3792.5,3792.3,7.43]
[1717235175894,2.3586,3792.5,3791.3,3.692765]
[1717235175895,2.91187742,3792.5,3791.5,7.43]
[1717235176109,2.40744351,3792.5,3791.5,7.43]
[1717235176418,2.3586,3792.5,3791.5,7.43]
[1717235179404,2.3586,3792.5,3791.6,2.3317]
[1717235180214,2.3586,3792.5,3791.7,2.63733]
[1717235189054,2.3586,3792.5,3791.5,7.43]
[1717235191926,2.4691,3792.9,3791.7,2.4487]
[1717235192127,2.4691,3792.9,3791.8,2.63724]
[1717235192329,0.04870493,3792.8,3791.8,2.63724]
[1717235197151,0.04870493,3792.8,3792.1,2.63701]
[1717235197307,0.04870493,3792.8,3792.2,2.4487]
[1717235197670,0.04709462,3792.7,3792.2,2.4487]
[1717235197954,2.4691,3793.2,3792.2,2.4487]
[1717235198113,0.04708703,3792.6,3792.2,2.4487]
[1717235198310,2.4691,3793.2,3792.3,2.63691]
[1717235198512,0.04707945,3792.5,3792.4,0.05273292]
[1717235198755,0.04707945,3792.5,3792.3,2.63691]
[1717235198756,2.4691,3793.2,3792.3,2.63691]
[1717235199122,0.04719181,3793.1,3792.3,2.63691]
[1717235199970,0.04719181,3793.1,3792.7,2.63662]
[1717235200111,0.04719181,3793.1,3792.0,7.89183638]
[1717235200112,0.04719181,3793.1,3792.9,2.6365]
[1717235200422,2.4691,3793.9,3792.9,2.6365]
[1717235200630,0.04739397,3793.8,3792.9,2.6365]
[1717235216845,2.4722,3794.1,3792.9,2.6365]
[1717235217047,0.04791682,3794.0,3792.9,2.6365]
[1717235218658,0.2999285,3794.0,3792.9,2.6365]
[1717235221269,0.04791682,3794.0,3792.9,2.6365]
[1717235221771,0.04791682,3794.0,3793.2,2.63628]
[1717235221966,0.04791682,3794.0,3793.3,0.05271816]
[1717235223251,0.04791682,3794.0,3793.2,2.63628]
[1717235230178,0.61773618,3794.0,3793.2,2.63628]
[1717235232756,0.6177382,3794.0,3793.2,2.63628]
[1717235232960,2.18895331,3794.0,3793.2,2.63628]
[1717235234248,1.61907291,3794.0,3793.2,2.63628]
[1717235234451,2.18889518,3794.0,3793.2,2.63628]
[1717235246201,0.56982227,3793.9,3793.2,2.63628]
[1717235246405,2.18889518,3794.0,3793.2,2.63628]
[1717235246608,0.04791406,3793.8,3793.2,2.63628]
[1717235246773,2.1889,3793.9,3793.2,2.63628]
[1717235247106,0.04791406,3793.8,3793.2,2.63628]
[1717235248405,1.57316435,3793.9,3793.2,2.63628]
[1717235248606,0.04790648,3793.7,3793.2,2.63628]
[1717235248814,0.04791406,3793.8,3793.2,2.63628]
[1717235249105,0.04790648,3793.7,3793.2,2.63628]
[1717235249306,1.57316435,3793.9,3793.2,2.63628]
[1717235249470,0.04791406,3793.8,3793.2,2.63628]
[1717235251815,0.04791406,3793.8,3793.1,2.2793]
[1717235257722,1.62107841,3793.8,3792.8,2.2804]
[1717235258587,1.57316435,3793.8,3792.8,2.2804]
[1717235259089,2.3576,3793.7,3792.8,2.2804]
[1717235259326,0.04786851,3793.6,3792.8,2.2804]
[1717235261020,4.20898435,3793.9,3792.8,2.2804]
[1717235261220,0.0477879,3793.5,3792.8,2.2804]
[1717235261427,0.56984879,3793.8,3792.8,2.2804]
[1717235261621,0.04770731,3793.4,3792.8,2.2804]
[1717235261935,0.04769974,3793.3,3792.8,2.2804]
[1717235262098,0.56984879,3793.8,3792.8,2.2804]
[1717235262298,0.04773004,3793.7,3792.8,2.2804]
[1717235265108,2.14301402,3793.8,3792.8,2.2804]
[1717235265304,0.04755723,3793.7,3792.8,2.2804]
[1717235265729,2.3692,3793.6,3792.7,2.63659]
[1717235265910,0.04594145,3793.5,3792.7,2.63659]
[1717235267798,0.04594145,3793.5,3792.6,9.7889]
[1717235268003,0.04594145,3793.5,3792.6,7.43]
[1717235268004,3.94236435,3793.4,3792.6,7.43]
[1717235268205,0.56991214,3793.3,3792.6,7.43]
[1717235268451,0.76068415,3793.3,3792.6,7.43]
[1717235269408,2.3692,3793.2,3792.6,7.43]
[1717235269801,0.04573434,3793.1,3792.6,7.43]
[1717235272836,2.68213434,3793.1,3792.6,7.43]
[1717235273043,2.3692,3793.0,3792.1,7.43]
[1717235273342,0.04551171,3792.9,3792.1,7.43]
[1717235280518,2.3692,3792.8,3792.1,7.43]
[1717235280719,0.04500733,3792.7,3792.1,7.43]
[1717235280948,2.3692,3792.6,3792.1,7.43]
[1717235281250,0.04499528,3792.5,3792.1,7.43]
[1717235281441,0.04499528,3792.5,3791.7,2.63729]
[1717235281819,2.3692,3792.6,3791.7,2.63729]
[1717235282048,0.0449877,3792.4,3791.7,2.63729]
[1717235282254,2.3692,3792.6,3791.7,2.63729]
[1717235282925,0.04499528,3792.5,3791.7,2.63729]
[1717235283260,2.3692,3792.4,3791.6,7.43]
[1717235283556,0.04498012,3792.3,3791.6,7.43]
[1717235284761,0.04498012,3792.3,3791.3,2.3589]
[1717235284959,2.3692,3792.4,3791.3,2.3589]
[1717235285257,0.04464648,3792.3,3791.3,2.3589]
[1717235285701,2.46484648,3792.3,3791.2,10.06764]
[1717235286021,2.4202,3792.3,3791.2,10.06764]
[1717235296647,0.04432916,3792.2,3791.2,10.06764]
[1717235297583,0.04432916,3792.2,3791.3,2.3073]
[1717235299093,0.04432916,3792.2,3791.2,10.06764]
[1717235299258,2.4202,3792.1,3791.2,10.06764]
[1717235299653,0.044314,3792.0,3791.2,10.06764]
[1717235302029,2.4202,3791.9,3791.2,10.06764]
[1717235302368,2.4202,3791.9,3791.2,2.63764]
[1717235303678,2.63666,3792.7,3791.2,2.63764]
[1717235303679,2.2676,3792.1,3791.2,4.90574]
[1717235304096,0.044314,3792.0,3791.2,4.90574]
[1717235308582,0.044314,3792.0,3791.2,2.63764]
[1717235308983,0.044314,3792.0,3791.3,2.2681]
[1717235310478,0.044314,3792.0,3791.2,2.63764]
[1717235313604,0.044314,3792.0,3791.0,1.055295]
[1717235313605,2.2676,3791.9,3791.0,1.055295]
[1717235313769,2.2676,3791.7,3790.8,7.43]
[1717235313973,2.2676,3791.5,3790.8,7.43]
[1717235314200,2.2676,3791.5,3790.6,12.24]
[1717235314201,0.04430507,3791.4,3790.4,7.43]
[1717235315071,2.66164334,3791.5,3790.4,7.43]
[1717235315271,4.23738409,3791.5,3790.4,7.43]
[1717235315571,0.04401557,3791.4,3790.4,7.43]
[1717235315768,0.09678796,3791.4,3790.4,7.43]
[1717235315973,2.2676,3791.3,3790.4,7.43]
[1717235316186,0.04395772,3791.2,3790.4,7.43]
[1717235320731,2.2676,3791.1,3790.4,7.43]
[1717235323612,2.49436,3791.1,3790.4,7.43]
[1717235323818,0.04352154,3791.0,3790.4,7.43]
[1717235323982,2.3805,3790.9,3790.4,7.43]
[1717235324180,0.04351744,3790.8,3790.4,7.43]
[1717235325491,2.3805,3790.7,3790.4,7.43]
[1717235325821,2.3805,3790.7,3790.1,0.08687237]
[1717235353455,2.2943,3791.1,3790.1,2.72530237]
[1717235353667,0.04345009,3791.0,3790.1,2.72530237]
[1717235354369,0.04345009,3791.0,3790.6,2.63806]
[1717235354543,0.04345009,3791.0,3790.7,0.05275374]
[1717235354739,2.2943,3791.4,3790.7,0.05275374]
[1717235354966,0.04364382,3790.9,3790.7,0.05275374]
[1717235355193,2.2943,3791.4,3790.7,0.05275374]
[1717235355493,2.2943,3791.4,3790.6,2.63806]
[1717235355630,0.04367416,3791.3,3790.6,2.63806]
[1717235355830,2.2943,3791.4,3790.6,2.63806]
[1717235356052,0.04367416,3791.3,3790.6,2.63806]
[1717235356265,2.2943,3791.4,3790.7,0.05275366]
[1717235356567,0.04367416,3791.3,3790.6,2.63806]
[1717235356861,2.2943,3791.4,3790.6,2.63806]
[1717235357086,0.04367416,3791.3,3790.6,2.63806]
[1717235368472,0.04367416,3791.3,3790.2,9.7528]
[1717235368473,2.4955,3791.2,3790.2,9.7528]
[1717235368881,2.4955,3791.2,3790.2,7.43]
[1717235370501,0.04316025,3791.1,3790.2,7.43]
[1717235371381,2.4955,3791.0,3790.2,7.43]
[1717235371787,0.04314508,3790.9,3790.2,7.43]
[1717235372919,2.4955,3790.8,3790.2,7.43]
[1717235373289,0.04312991,3790.7,3790.2,7.43]
[1717235373708,2.4955,3790.8,3790.2,7.43]
[1717235373913,0.04279308,3790.6,3790.2,7.43]
[1717235374109,0.04280067,3790.7,3790.2,7.43]
[1717235374291,2.4955,3790.8,3790.2,7.43]
[1717235374675,0.04280067,3790.7,3790.2,7.43]
[1717235375210,2.4955,3790.8,3790.2,7.43]
[1717235375415,2.4955,3790.6,3790.2,7.43]
[1717235375591,2.4955,3790.6,3790.1,2.72527237]
[1717235375912,2.4955,3790.6,3790.1,0.08687237]
[1717235377226,0.04266049,3790.5,3790.1,0.08687237]
[1717235377580,2.4955,3790.4,3790.1,0.08687237]
[1717235377885,0.04264532,3790.3,3790.1,0.08687237]
[1717235382833,0.04264532,3790.3,3790.1,2.35017237]
[1717235383038,2.4955,3791.0,3790.1,2.35017237]
[1717235383218,2.63752,3791.5,3790.2,2.63833]
[1717235383392,2.2834,3791.4,3790.2,2.63833]
[1717235384224,2.2834,3791.4,3790.5,2.63812]
[1717235384430,2.2834,3791.7,3790.5,2.63812]
[1717235384591,2.2834,3791.7,3790.6,2.419]
[1717235385230,2.2834,3791.7,3790.7,0.05275172]
[1717235386098,2.2834,3791.7,3790.6,2.419]
[1717235389638,0.04276526,3791.6,3790.6,2.419]
[1717235395621,3.21285179,3791.6,3790.6,2.419]
[1717235395822,2.3274,3791.5,3790.5,2.63812]
[1717235396238,0.04296353,3791.4,3790.5,2.63812]
[1717235398230,0.04296353,3791.4,3790.6,2.4301]
[1717235398636,2.63747,3791.6,3790.6,2.4301]
[1717235398940,0.04294978,3791.5,3790.6,2.4301]
[1717235401443,0.04294978,3791.5,3790.8,2.4301]
[1717235402222,0.04294978,3791.5,3790.9,0.05275179]
[1717235402835,0.04294978,3791.5,3790.8,2.4301]
[1717235404670,0.26804198,3791.4,3790.6,2.3014]
[1717235405048,0.04184962,3791.3,3790.6,2.3014]
[1717235405721,2.341,3791.5,3790.6,2.3014]
[1717235405924,0.0419152,3791.2,3790.6,2.3014]
[1717235406166,2.341,3791.5,3790.6,2.3014]
[1717235406349,0.04195335,3791.1,3790.6,2.3014]
[1717235406549,2.341,3791.5,3790.6,2.3014]
[1717235406757,0.04194576,3791.0,3790.6,2.3014]
[1717235406927,2.341,3791.5,3790.6,2.3014]
[1717235407245,2.63747,3791.6,3790.7,2.3014]
[1717235407445,0.04198369,3791.5,3790.7,2.3014]
[1717235409763,5.341,3792.0,3790.7,2.3014]
[1717235409925,0.0419761,3791.4,3790.7,2.3014]
[1717235410127,5.341,3792.0,3790.7,2.3014]
[1717235410363,0.04196852,3791.3,3790.7,2.3014]
[1717235410567,5.341,3792.0,3790.7,2.3014]
[1717235410744,0.04196093,3791.2,3790.7,2.3014]
[1717235411068,5.341,3792.0,3790.7,2.3014]
[1717235411262,0.57020247,3791.9,3790.7,2.3014]
[1717235411451,3.61226831,3791.9,3790.7,2.3014]
[1717235411654,3.04206584,3791.9,3790.7,2.3014]
[1717235411830,0.04206584,3791.9,3790.7,2.3014]
[1717235412036,0.61226958,3791.9,3790.8,2.63794]
[1717235412259,3.61226958,3791.9,3790.9,2.3014]
[1717235412458,3.04206584,3791.9,3790.9,2.3014]
[1717235412665,0.04206584,3791.9,3790.9,2.35415179]
[1717235413400,0.04206584,3791.9,3791.1,2.3014]
[1717235413533,0.04206584,3791.9,3791.3,2.3014]
[1717235413733,0.04206584,3791.9,3791.5,2.3014]
[1717235413928,0.18892499,3792.1,3791.6,0.05274411]
[1717235414169,0.0421114,3791.8,3791.6,0.05274411]
[1717235414332,0.18892499,3792.1,3791.6,0.05274281]
[1717235414754,0.04213507,3792.0,3791.6,0.05274281]